bitfinex-derivatives/quotes_BNBF0:USTF0_20241225
["timestamp","ask_amount","ask_price","bid_price","bid_amount"]
[1735105620320,0.26100331,704.9,704.02,1.05850441]
[1735105620517,0.26100331,704.89,704.02,1.05850441]
[1735105620726,0.26100331,704.88,704.02,1.05850441]
[1735105620932,0.26099627,704.87,704.02,1.05850441]
[1735105621120,0.28372013,704.92,704.06,1.05850441]
[1735105621421,0.26099888,704.91,704.06,1.05850441]
[1735105622030,0.26099888,704.91,704.05,1.05850441]
[1735105622622,0.28372818,704.9,704.05,1.05850441]
[1735105622829,0.26099888,704.89,704.05,1.05850441]
[1735105623077,0.54473109,704.89,704.05,1.05850441]
[1735105623219,0.26099888,704.88,704.05,1.05850441]
[1735105623923,0.26099888,704.88,704.03,1.05850441]
[1735105624734,0.26099888,704.88,704.0,1.05850441]
[1735105625024,0.26102958,704.87,704.0,1.05850441]
[1735105625235,0.26102958,704.86,704.0,1.05850441]
[1735105625419,0.26102958,704.85,704.0,1.05850441]
[1735105625628,0.26102958,704.84,704.0,1.05850441]
[1735105625824,0.26102958,704.83,704.0,1.05850441]
[1735105626126,0.26102958,704.82,703.99,1.05850441]
[1735105626320,0.26102958,704.81,703.99,1.05850441]
[1735105626525,0.26102958,704.8,703.99,1.05850441]
[1735105626802,0.26102968,704.79,703.99,1.05850441]
[1735105626919,0.28373221,704.89,703.99,1.05850441]
[1735105627120,0.26102744,704.88,703.99,1.05850441]
[1735105627726,0.26102744,704.88,704.0,1.05850441]
[1735105628731,0.26102845,704.87,703.99,1.05850441]
[1735105628922,0.26102845,704.86,703.99,1.05850441]
[1735105629179,0.26102845,704.85,703.99,1.05850441]
[1735105629325,0.26102845,704.84,703.99,1.05850441]
[1735105629525,0.26102845,704.84,703.46,2.16111318]
[1735105629526,0.26102845,704.83,704.02,1.05850441]
[1735105629721,0.26102845,704.82,704.02,1.05850441]
[1735105629926,0.28373221,704.89,704.02,1.05850441]
[1735105630125,0.26101587,704.88,704.02,1.05850441]
[1735105630626,0.26101862,704.87,704.02,1.05850441]
[1735105630827,0.26101862,704.86,704.02,1.05850441]
[1735105631022,0.28373221,704.89,704.02,1.05850441]
[1735105631023,0.26101862,704.85,704.02,1.05850441]
[1735105631223,0.26101862,704.84,704.02,1.05850441]
[1735105631425,0.26101862,704.83,704.02,1.05850441]
[1735105631620,0.28373221,704.89,704.02,1.05850441]
[1735105631821,0.26101413,704.88,704.02,1.05850441]
[1735105632825,0.28373221,704.89,704.05,1.05850441]
[1735105633326,0.26100646,704.88,704.05,1.05850441]
[1735105633726,0.28373221,704.89,704.05,1.05850441]
[1735105634129,0.26099902,704.88,704.03,1.05850441]
[1735105634853,0.28373221,704.89,704.03,1.05850441]
[1735105635028,0.28373221,704.89,703.84,1.05850441]
[1735105635029,0.28373221,704.89,704.06,1.05850441]
[1735105635629,0.26099609,704.88,704.06,1.05850441]
[1735105635828,0.26099609,704.88,703.51,2.16111318]
[1735105635829,0.26099609,704.88,704.07,1.05850441]
[1735105636129,0.26100936,704.87,704.07,1.05850441]
[1735105636329,0.26100936,704.86,704.07,1.05850441]
[1735105636529,0.26100936,704.85,704.07,1.05850441]
[1735105636723,0.26100936,704.85,703.53,2.16111318]
[1735105636724,0.28373221,704.89,704.04,1.05850441]
[1735105636922,0.2610078,704.88,704.04,1.05850441]
[1735105638626,0.2610078,704.88,703.85,1.05850441]
[1735105638627,0.2610078,704.88,704.05,1.05850441]
[1735105639431,0.2610078,704.88,704.04,1.05850441]
[1735105642031,0.28373221,704.89,704.04,1.05850441]
[1735105642393,0.28373221,704.89,704.02,1.05850441]
[1735105643332,0.28373221,704.89,704.01,1.05850441]
[1735105644128,0.27834582,704.89,704.01,1.05850441]
[1735105644580,0.27834582,704.89,704.0,1.05850441]
[1735105645533,0.27834582,704.89,703.99,1.05850441]
[1735105646736,0.27834582,704.89,704.0,1.05850441]
[1735105647835,0.27834582,704.89,703.99,1.05850441]
[1735105648639,0.27834582,704.89,703.96,1.05850441]
[1735105649436,0.27834582,704.89,703.98,1.05850441]
[1735105652237,0.27834582,704.89,703.99,1.05850441]
[1735105653330,0.27834582,704.89,703.32,2.16111318]
[1735105653331,0.27834582,704.89,704.03,1.05850441]
[1735105654241,0.27834582,704.89,704.02,1.05850441]
[1735105655443,0.27834582,704.89,703.4,2.16111318]
[1735105655444,0.27834582,704.89,703.99,1.05850441]
[1735105657563,0.26101155,704.88,703.99,1.05850441]
[1735105658335,0.26101107,704.87,703.99,1.05850441]
[1735105658541,0.26101107,704.86,703.99,1.05850441]
[1735105658737,0.26101107,704.85,704.06,1.05850441]
[1735105658940,0.26101107,704.84,704.06,1.05850441]
[1735105659140,0.26101107,704.83,704.06,1.05850441]
[1735105659334,0.27834582,704.89,704.06,1.05850441]
[1735105659538,0.2610112,704.88,704.06,1.05850441]
[1735105661038,0.27834582,704.89,704.06,1.05850441]
[1735105661233,0.26100853,704.88,704.06,1.05850441]
[1735105661941,0.26101589,704.87,704.05,1.05850441]
[1735105662141,0.27834582,704.89,704.05,1.05850441]
[1735105662335,0.26101461,704.88,704.05,1.05850441]
[1735105663241,0.26101461,704.88,704.03,1.05850441]
[1735105664003,0.27834582,704.89,704.03,1.05850441]
[1735105664443,0.27834582,704.89,703.87,1.05850441]
[1735105665644,0.27834582,704.89,703.86,1.05850441]
[1735105666640,0.27834582,704.89,703.87,1.05850441]
[1735105669264,0.27834582,704.89,703.86,1.05850441]
[1735105672355,0.27834582,704.89,703.03,2.16111318]
[1735105672356,0.27834582,704.89,703.89,1.05850441]
[1735105673462,0.27834582,704.89,703.91,1.05850441]
[1735105674450,0.27834582,704.89,703.08,2.16111318]
[1735105674451,0.27834582,704.89,703.99,1.05850441]
[1735105677849,0.27834582,704.89,704.0,1.05850441]
[1735105679950,0.27834582,704.89,703.92,1.05850441]
[1735105681953,0.27834582,704.89,703.91,1.05850441]
[1735105682852,0.27834582,704.89,703.52,1.05850441]
[1735105682853,0.27834582,704.89,703.92,1.05850441]
[1735105684252,0.27834582,704.89,703.93,1.05850441]
[1735105685051,0.27834582,704.89,703.9,1.05850441]
[1735105685954,0.27834582,704.89,703.15,2.16111318]
[1735105685955,0.27834582,704.89,703.92,1.05850441]
[1735105689055,0.27834582,704.89,703.93,1.05850441]
[1735105690052,0.27834582,704.89,703.95,1.05850441]
[1735105691155,0.27834582,704.89,704.01,1.05850441]
[1735105692258,0.27834582,704.89,703.95,1.05850441]
[1735105693462,0.27834582,704.89,703.92,1.05850441]
[1735105694257,0.27834582,704.89,703.34,2.04584956]
[1735105694258,0.27834582,704.89,703.94,1.05850441]
[1735105696560,0.27834582,704.89,703.98,1.05850441]
[1735105698261,0.27834582,704.89,703.34,0.77564427]
[1735105698262,0.27834582,704.89,703.99,1.05850441]
[1735105700663,0.27834582,704.89,703.93,1.05850441]
[1735105703163,0.27834582,704.89,703.66,1.05850441]
[1735105703164,0.27834582,704.89,703.94,1.05850441]
[1735105704263,0.27834582,704.89,703.93,1.05850441]
[1735105705368,0.27834582,704.89,703.94,1.05850441]
[1735105707276,0.27834582,704.89,703.95,1.05850441]
[1735105708382,0.27834582,704.89,703.98,1.05850441]
[1735105709474,0.26101945,704.88,703.98,1.05850441]
[1735105709672,0.26101945,704.88,703.96,1.05850441]
[1735105710372,0.26101393,704.87,703.96,1.05850441]
[1735105710675,0.26101393,704.86,703.96,1.05850441]
[1735105710874,0.27834582,704.89,704.06,1.05850441]
[1735105710875,0.26101393,704.85,704.06,1.05850441]
[1735105711147,0.26101393,704.84,704.06,1.05850441]
[1735105711371,0.26101393,704.83,704.06,1.05850441]
[1735105711675,0.27834582,704.89,704.06,1.05850441]
[1735105711975,0.26101696,704.88,704.05,1.05850441]
[1735105712676,0.26101696,704.88,704.06,1.05850441]
[1735105713171,0.26101812,704.87,704.06,1.05850441]
[1735105713371,0.26101812,704.86,704.06,1.05850441]
[1735105713576,0.27834582,704.89,704.06,1.05850441]
[1735105713775,0.27834582,704.89,703.51,2.16111318]
[1735105713776,0.26102035,704.88,704.04,1.05850441]
[1735105714585,0.26102035,704.88,704.05,1.05850441]
[1735105714986,0.27834582,704.89,704.05,1.05850441]
[1735105715682,0.27834582,704.89,703.75,1.05850441]
[1735105716480,0.27834582,704.89,703.96,1.05850441]
[1735105717582,0.27834582,704.89,703.92,1.05850441]
[1735105718278,0.27834582,704.89,703.89,1.05850441]
[1735105719581,0.27834582,704.89,703.9,1.05850441]
[1735105722785,0.27834582,704.89,703.89,1.05850441]
[1735105723881,0.27834582,704.89,703.36,0.77720751]
[1735105723882,0.27834582,704.89,703.91,1.05850441]
[1735105724888,0.27834582,704.89,703.94,1.05850441]
[1735105726086,0.27834582,704.89,703.99,1.05850441]
[1735105727188,0.27834582,704.89,703.98,1.05850441]
[1735105728182,0.27834582,704.89,703.99,1.05850441]
[1735105729090,0.27834582,704.89,703.98,1.05850441]
[1735105729998,0.27834582,704.89,704.0,1.05850441]
[1735105730988,0.27834582,704.89,703.98,1.05850441]
[1735105731889,0.27834582,704.89,703.97,1.05850441]
[1735105732985,0.27834582,704.89,703.99,1.05850441]
[1735105734013,0.27834582,704.89,704.04,1.05850441]
[1735105734793,0.27834582,704.89,704.02,1.05850441]
[1735105735797,0.27834582,704.89,703.99,1.05850441]
[1735105737690,0.27834582,704.89,703.97,1.05850441]
[1735105738893,0.27834582,704.89,703.81,1.05850441]
[1735105740096,0.27834582,704.89,703.82,1.05850441]
[1735105742196,0.27834582,704.89,703.83,1.05850441]
[1735105743099,0.27834582,704.89,703.84,1.05850441]
[1735105744198,0.27834582,704.89,703.87,1.05850441]
[1735105744994,0.27834582,704.89,703.52,0.77777003]
[1735105744995,0.27834582,704.89,703.88,1.05850441]
[1735105748096,0.27834582,704.89,704.04,1.05850441]
[1735105749100,0.27834582,704.89,704.08,1.05850441]
[1735105750203,0.27834582,704.89,704.09,1.05850441]
[1735105751101,0.27834582,704.89,703.91,1.05850441]
[1735105752202,0.27834582,704.89,703.95,1.05850441]
[1735105753198,0.27834582,704.89,703.9,1.05850441]
[1735105754602,0.27834582,704.89,703.88,1.05850441]
[1735105755497,0.27834582,704.89,704.06,1.05850441]
[1735105756503,0.27834582,704.89,704.03,1.05850441]
[1735105758598,0.27834582,704.89,703.62,1.05850441]
[1735105758599,0.27834582,704.89,704.09,1.05850441]
[1735105762104,0.27834582,704.89,704.08,1.05850441]
[1735105765610,0.27834582,704.89,704.1,1.05850441]
[1735105766609,0.27834582,704.89,704.09,1.05850441]
[1735105769616,0.27834582,704.89,704.13,1.05850441]
[1735105769818,1.06169592,705.61,704.13,1.05850441]
[1735105770013,0.28345072,705.59,704.13,1.05850441]
[1735105770251,0.26090854,705.58,704.13,1.05850441]
[1735105770414,0.26090854,705.57,704.13,1.05850441]
[1735105770611,0.26090854,705.56,704.13,1.05850441]
[1735105770815,0.28346679,705.55,704.16,1.05850441]
[1735105771017,0.26090871,705.54,704.16,1.05850441]
[1735105771612,0.26090871,705.54,704.12,1.05850441]
[1735105772610,0.28347483,705.53,704.12,1.05850441]
[1735105772812,0.26090871,705.52,704.12,1.05850441]
[1735105773118,0.28348287,705.51,704.07,1.05850441]
[1735105773319,0.26090871,705.5,704.07,1.05850441]
[1735105773917,0.2834909,705.49,704.07,1.05850441]
[1735105774220,0.26090871,705.48,704.07,1.05850441]
[1735105774416,0.28349894,705.47,704.07,1.05850441]
[1735105774622,0.26090871,705.46,704.07,1.05850441]
[1735105774823,0.28350698,705.45,704.07,1.05850441]
[1735105775016,0.26090871,705.44,704.07,1.05850441]
[1735105775223,0.26090871,705.44,703.29,2.16111318]
[1735105775224,0.26090871,705.44,704.06,1.05850441]
[1735105775420,0.28351501,705.43,704.06,1.05850441]
[1735105775625,0.26090871,705.42,704.06,1.05850441]
[1735105775819,0.28352305,705.41,704.06,1.05850441]
[1735105776023,0.26090871,705.4,704.06,1.05850441]
[1735105776323,0.54442807,705.39,704.04,1.05850441]
[1735105776521,0.26089698,705.38,704.04,1.05850441]
[1735105776720,0.28353913,705.37,704.05,1.05850441]
[1735105776920,0.26089698,705.36,704.05,1.05850441]
[1735105777924,0.28354717,705.35,704.05,1.05850441]
[1735105779127,0.28354717,705.35,703.3,2.16111318]
[1735105779128,0.28354717,705.35,704.06,1.05850441]
[1735105780024,0.28354717,705.35,704.08,1.05850441]
[1735105780437,0.26089697,705.34,704.08,1.05850441]
[1735105782128,0.26089697,705.34,704.17,1.05850441]
[1735105783122,0.26089697,705.34,704.23,1.05850441]
[1735105783625,0.28355521,705.33,704.23,1.05850441]
[1735105783829,0.26089697,705.32,704.23,1.05850441]
[1735105784029,0.26089697,705.32,704.25,1.05850441]
[1735105784734,0.26088943,705.31,704.25,1.05850441]
[1735105784930,0.26088943,705.3,704.25,1.05850441]
[1735105785130,0.26088943,705.29,704.28,1.05850441]
[1735105785423,0.28355521,705.33,704.28,1.05850441]
[1735105785424,0.2608828,705.28,704.28,1.05850441]
[1735105785631,0.2608828,705.27,704.28,1.05850441]
[1735105785825,0.2608828,705.26,704.28,1.05850441]
[1735105786023,0.2608828,705.26,703.81,0.77687863]
[1735105786024,0.2608828,705.25,704.32,1.05850441]
[1735105786324,0.2608828,705.24,704.32,1.05850441]
[1735105786533,0.28355521,705.33,704.32,1.05850441]
[1735105786534,0.2608828,705.23,704.32,1.05850441]
[1735105786725,0.2608828,705.22,704.32,1.05850441]
[1735105787027,0.2608828,705.21,704.32,1.05850441]
[1735105787232,0.26088461,705.2,704.32,1.05850441]
[1735105787524,0.26088461,705.2,703.79,2.16111318]
[1735105787525,0.28355521,705.33,704.33,1.05850441]
[1735105787830,0.26088979,705.32,704.33,1.05850441]
[1735105788023,0.28356325,705.31,704.33,1.05850441]
[1735105788227,0.26088979,705.3,704.33,1.05850441]
[1735105788632,0.26088979,705.3,704.3,1.05850441]
[1735105789429,0.26088979,705.3,704.28,1.05850441]
[1735105793233,0.26088161,705.29,704.28,1.05850441]
[1735105793430,0.26088161,705.28,704.32,1.05850441]
[1735105793630,0.26088161,705.27,704.32,1.05850441]
[1735105793833,0.26088161,705.26,704.32,1.05850441]
[1735105794033,0.26088126,705.25,704.32,1.05850441]
[1735105794247,0.26088126,705.24,704.32,1.05850441]
[1735105794439,0.26088126,705.23,704.32,1.05850441]
[1735105794636,0.26088126,705.22,704.32,1.05850441]
[1735105794834,0.26088126,705.3,704.32,1.05850441]
[1735105795036,0.26088126,705.29,704.32,1.05850441]
[1735105795348,0.26088126,705.3,704.32,1.05850441]
[1735105795433,0.28356325,705.31,704.32,1.05850441]
[1735105795434,0.26088126,705.29,704.32,1.05850441]
[1735105795629,0.28356325,705.31,704.32,1.05850441]
[1735105795630,0.26088126,705.28,704.32,1.05850441]
[1735105795932,0.26088126,705.27,704.32,1.05850441]
[1735105796133,0.26088495,705.26,704.32,1.05850441]
[1735105796329,0.26088495,705.25,704.32,1.05850441]
[1735105796534,0.28356325,705.31,704.32,1.05850441]
[1735105796535,0.26088495,705.24,704.32,1.05850441]
[1735105796738,0.26088495,705.23,704.32,1.05850441]
[1735105797039,0.26088495,705.22,704.3,1.05850441]
[1735105797237,0.26088495,705.21,704.3,1.05850441]
[1735105797444,0.26088495,705.2,704.3,1.05850441]
[1735105797740,0.26088495,705.19,704.3,1.05850441]
[1735105797935,0.26088495,705.18,704.3,1.05850441]
[1735105798136,0.28356325,705.31,704.33,1.05850441]
[1735105798408,0.26088489,705.3,704.33,1.05850441]
[1735105798862,0.26087991,705.29,704.33,1.05850441]
[1735105799042,0.26087991,705.28,704.34,1.05850441]
[1735105799239,0.26087991,705.27,704.34,1.05850441]
[1735105799489,0.26087991,705.26,704.34,1.05850441]
[1735105799640,0.26087991,705.25,704.34,1.05850441]
[1735105799841,0.26087991,705.24,704.34,1.05850441]
[1735105800035,0.26087991,705.23,704.34,1.05850441]
[1735105800241,0.26087991,705.23,703.81,2.16111318]
[1735105800242,0.28356325,705.31,704.35,1.05850441]
[1735105800439,0.26087695,705.3,704.35,1.05850441]
[1735105801042,0.26088288,705.29,704.35,1.05850441]
[1735105801339,0.26088288,705.28,704.34,1.05850441]
[1735105801544,0.26088288,705.27,704.34,1.05850441]
[1735105801737,0.26088288,705.26,704.34,1.05850441]
[1735105801940,0.26088288,705.25,704.34,1.05850441]
[1735105802138,0.26088288,705.24,704.36,1.05850441]
[1735105802344,0.28356325,705.31,704.36,1.05850441]
[1735105802345,0.26088288,705.23,704.36,1.05850441]
[1735105802538,0.28356325,705.31,704.36,1.05850441]
[1735105802739,0.26088318,705.3,704.36,1.05850441]
[1735105802940,0.26088318,705.3,704.35,1.05850441]
[1735105803639,0.28356325,705.31,704.35,1.05850441]
[1735105804658,0.28356325,705.31,704.39,1.05850441]
[1735105805344,0.28356325,705.31,704.45,1.05850441]
[1735105806637,0.28356325,705.31,704.42,1.05850441]
[1735105807644,0.28356325,705.31,704.4,1.05850441]
[1735105808662,0.28356325,705.31,704.07,1.05850441]
[1735105808663,0.28356325,705.31,704.34,1.05850441]
[1735105809681,0.28356325,705.31,704.39,1.05850441]
[1735105811344,0.28356325,705.31,704.4,1.05850441]
[1735105812420,0.28356325,705.31,704.38,1.05850441]
[1735105813545,0.28356325,705.31,704.37,1.05850441]
[1735105814912,0.28356325,705.31,704.39,1.05850441]
[1735105816243,0.28356325,705.31,704.38,1.05850441]
[1735105817249,0.28356325,705.31,704.37,1.05850441]
[1735105819157,0.28356325,705.31,703.79,2.16111318]
[1735105819158,0.28356325,705.31,704.36,1.05850441]
[1735105820160,0.28356325,705.31,704.37,1.05850441]
[1735105821855,0.28356325,705.31,704.32,1.05850441]
[1735105824062,0.28356325,705.31,703.66,2.16111318]
[1735105824063,0.28356325,705.31,704.29,1.05850441]
[1735105825156,0.28356325,705.31,704.27,1.05850441]
[1735105827490,0.28356325,705.31,704.29,1.05850441]
[1735105828454,0.28356325,705.31,704.3,1.05850441]
[1735105829462,0.28356325,705.31,704.03,1.05850441]
[1735105829463,0.28356325,705.31,704.29,1.05850441]
[1735105830363,0.28356325,705.31,704.3,1.05850441]
[1735105831061,0.28356325,705.31,704.06,1.05850441]
[1735105833061,0.28356325,705.31,704.07,1.05850441]
[1735105834468,0.28356325,705.31,704.09,1.05850441]
[1735105835667,0.28356325,705.31,704.1,1.05850441]
[1735105836626,0.28356325,705.31,704.07,1.05850441]
[1735105837271,0.28356325,705.31,704.11,1.05850441]
[1735105838465,0.28356325,705.31,703.7,1.05850441]
[1735105838466,0.28356325,705.31,704.1,1.05850441]
[1735105839669,0.28356325,705.31,704.14,1.05850441]
[1735105840671,0.28356325,705.31,703.61,0.77581671]
[1735105840672,0.28356325,705.31,704.18,1.05850441]
[1735105842171,0.28356325,705.31,703.61,0.77581671]
[1735105842172,0.28356325,705.31,704.15,1.05850441]
[1735105844172,0.28356325,705.31,704.16,1.05850441]
[1735105845170,0.28356325,705.31,704.15,1.05850441]
[1735105847172,0.28356325,705.31,704.2,1.05850441]
[1735105848278,0.28356325,705.31,704.17,1.05850441]
[1735105849375,0.28356325,705.31,704.27,1.05850441]
[1735105850577,0.28356325,705.31,704.26,1.05850441]
[1735105850769,0.26088574,705.3,704.26,1.05850441]
[1735105851682,0.26088574,705.3,703.61,0.77581671]
[1735105851683,0.26088574,705.3,704.25,1.05850441]
[1735105852373,0.28356325,705.31,704.25,1.05850441]
[1735105852574,0.26088532,705.3,704.24,1.05850441]
[1735105852970,0.28356325,705.31,704.24,1.05850441]
[1735105853170,0.26088721,705.3,704.24,1.05850441]
[1735105853577,0.28356325,705.31,704.23,1.05850441]
[1735105853779,0.2608857,705.3,704.23,1.05850441]
[1735105855437,0.2608857,705.3,704.25,1.05850441]
[1735105855781,0.26088473,705.29,704.25,1.05850441]
[1735105855982,0.26088473,705.28,704.25,1.05850441]
[1735105856175,0.26088473,705.27,704.24,1.05850441]
[1735105856409,0.26088473,705.26,704.24,1.05850441]
[1735105856583,0.26088473,705.25,704.24,1.05850441]
[1735105856775,0.26088473,705.24,704.24,1.05850441]
[1735105856976,0.26088473,705.3,704.24,1.05850441]
[1735105857178,0.26088473,705.29,704.24,1.05850441]
[1735105857387,0.26088473,705.28,704.25,1.05850441]
[1735105857676,0.26088473,705.27,704.25,1.05850441]
[1735105857883,0.28356325,705.31,704.25,1.05850441]
[1735105858789,0.28356325,705.31,704.0,1.05850441]
[1735105859882,0.28356325,705.31,703.95,1.05850441]
[1735105860788,0.28356325,705.31,703.97,1.05850441]
[1735105861886,0.28356325,705.31,703.98,1.05850441]
[1735105863783,0.28356325,705.31,703.96,1.05850441]
[1735105864890,0.28356325,705.31,703.97,1.05850441]
[1735105865888,0.28356325,705.31,704.04,1.05850441]
[1735105866887,0.28356325,705.31,704.03,1.05850441]
[1735105867790,0.2609176,705.3,704.02,1.05850441]
[1735105868287,0.28356325,705.31,704.02,1.05850441]
[1735105868685,0.28356325,705.31,704.01,1.05850441]
[1735105869788,0.26092005,705.3,704.01,1.05850441]
[1735105870189,1.06169592,705.81,704.01,1.05850441]
[1735105870190,0.28357129,705.29,704.01,1.05850441]
[1735105872094,0.28357129,705.29,704.03,1.05850441]
[1735105873395,0.28357129,705.29,704.08,1.05850441]
[1735105874194,0.26092147,705.28,704.08,1.05850441]
[1735105874389,0.28357933,705.27,704.08,1.05850441]
[1735105874595,0.26092147,705.26,704.08,1.05850441]
[1735105874793,0.28358738,705.25,704.08,1.05850441]
[1735105875494,0.26091317,705.24,704.08,1.05850441]
[1735105875690,0.28359542,705.23,704.08,1.05850441]
[1735105875894,0.28359542,705.23,704.1,1.05850441]
[1735105877098,0.28359542,705.23,704.13,1.05850441]
[1735105877994,0.26091217,705.22,704.13,1.05850441]
[1735105878696,0.54451161,705.22,704.13,1.05850441]
[1735105878895,0.26091217,705.21,704.18,1.05850441]
[1735105879598,0.28359944,705.22,704.18,1.05850441]
[1735105879899,0.26091074,705.21,704.18,1.05850441]
[1735105880105,0.26091074,705.21,704.2,1.05850441]
[1735105881497,0.26091074,705.21,704.21,1.05850441]
[1735105882296,0.28360748,705.2,704.21,1.05850441]
[1735105882497,0.26091074,705.19,704.21,1.05850441]
[1735105883003,0.28361553,705.18,704.21,1.05850441]
[1735105883199,0.2609285,705.17,704.21,1.05850441]
[1735105883515,0.28362357,705.16,704.21,1.05850441]
[1735105883593,0.2609285,705.15,704.21,1.05850441]
[1735105883795,0.2609285,705.15,704.16,1.05850441]
[1735105884391,1.06169592,705.53,704.16,1.05850441]
[1735105884392,0.28363161,705.14,704.16,1.05850441]
[1735105884798,0.28363161,705.14,704.19,1.05850441]
[1735105885796,0.28363161,705.14,703.94,1.05850441]
[1735105886692,0.28363161,705.14,703.91,1.05850441]
[1735105890007,0.28363161,705.14,703.9,1.05850441]
[1735105891000,0.28363161,705.14,703.84,1.05850441]
[1735105892003,0.28363161,705.14,703.79,1.05850441]
[1735105893133,0.28363161,705.14,703.75,1.05850441]
[1735105894405,0.28363161,705.14,703.76,1.05850441]
[1735105895608,0.28363161,705.14,703.71,1.05850441]
[1735105895801,0.26099497,705.13,703.71,1.05850441]
[1735105896460,0.26100104,705.12,703.71,1.05850441]
[1735105896612,0.26100104,705.11,703.77,1.05850441]
[1735105896805,0.26100104,705.1,703.77,1.05850441]
[1735105897006,0.26100104,705.09,703.77,1.05850441]
[1735105897205,0.26100104,705.08,703.77,1.05850441]
[1735105897409,0.26100104,705.08,703.62,0.28424433]
[1735105897410,0.26100104,705.07,703.75,1.05850441]
[1735105897601,0.28363161,705.14,703.75,1.05850441]
[1735105897814,0.26099493,705.13,703.75,1.05850441]
[1735105898609,0.26099493,705.13,703.77,1.05850441]
[1735105899008,0.26098677,705.12,703.77,1.05850441]
[1735105899309,0.26098677,705.11,703.77,1.05850441]
[1735105899503,0.26098677,705.1,703.77,1.05850441]
[1735105899702,0.26098677,705.1,703.62,0.28424433]
[1735105899703,0.28363161,705.14,703.75,1.05850441]
[1735105899913,0.2609933,705.13,703.75,1.05850441]
[1735105900710,0.2609933,705.13,703.72,1.05850441]
[1735105901210,0.28363966,705.12,703.72,1.05850441]
[1735105901470,0.2609933,705.11,703.72,1.05850441]
[1735105901806,0.28363966,705.12,703.72,1.05850441]
[1735105902103,0.28363966,705.12,703.62,0.28424433]
[1735105902104,0.26100332,705.11,703.71,1.05850441]
[1735105902610,0.2836477,705.1,703.71,1.05850441]
[1735105902811,0.26100332,705.09,703.71,1.05850441]
[1735105903011,0.28365575,705.08,703.73,1.05850441]
[1735105903404,0.26100281,705.07,703.73,1.05850441]
[1735105903609,0.2836638,705.06,703.73,1.05850441]
[1735105903809,0.26100281,705.05,703.73,1.05850441]
[1735105904012,0.26100281,705.05,703.74,1.05850441]
[1735105904412,0.28367184,705.04,703.74,1.05850441]
[1735105904607,0.26100281,705.03,703.77,1.05850441]
[1735105904805,0.28367989,705.02,703.77,1.05850441]
[1735105905010,0.26100281,705.01,703.77,1.05850441]
[1735105905210,0.54468672,705.01,703.77,1.05850441]
[1735105905587,0.26100281,705.0,703.77,1.05850441]
[1735105905754,0.54469075,705.0,703.75,1.05850441]
[1735105905909,0.26100281,704.99,703.75,1.05850441]
[1735105906114,0.28369599,704.98,703.75,1.05850441]
[1735105906713,0.28369599,704.98,703.76,1.05850441]
[1735105907510,0.28369599,704.98,703.75,1.05850441]
[1735105908312,0.28369599,704.98,703.84,1.05850441]
[1735105909514,0.28369599,704.98,703.86,1.05850441]
[1735105911063,0.28369599,704.98,703.88,1.05850441]
[1735105912218,0.28369599,704.98,703.9,1.05850441]
[1735105913319,0.28369599,704.98,703.62,0.28424433]
[1735105913320,0.28369599,704.98,704.02,1.05850441]
[1735105914120,0.28369599,704.98,704.04,1.05850441]
[1735105915321,0.28369599,704.98,704.0,1.05850441]
[1735105916225,0.28369599,704.98,704.04,1.05850441]
[1735105916925,0.28369599,704.98,704.05,1.05850441]
[1735105917926,0.28369599,704.98,703.66,0.28422817]
[1735105917927,0.26097286,704.97,704.03,1.05850441]
[1735105920127,0.26097286,704.97,704.05,1.05850441]
[1735105920934,0.28369599,704.98,704.03,1.05850441]
[1735105920935,0.26098128,704.96,704.03,1.05850441]
[1735105921129,0.26098128,704.95,704.03,1.05850441]
[1735105921331,0.28369599,704.98,704.03,1.05850441]
[1735105921732,0.28369599,704.98,704.05,1.05850441]
[1735105921733,0.26096684,704.97,704.05,1.05850441]
[1735105923929,0.28369599,704.98,704.08,1.05850441]
[1735105924175,0.26098025,704.97,704.08,1.05850441]
[1735105925956,0.28369599,704.98,704.08,1.05850441]
[1735105926171,0.26099553,704.97,704.08,1.05850441]
[1735105926332,0.28370403,704.96,704.07,1.05850441]
[1735105927027,0.28370403,704.96,703.71,1.05850441]
[1735105928031,0.28370403,704.96,703.66,0.28422817]
[1735105936451,0.26103505,704.95,703.66,0.28422817]
[1735105936741,0.54474311,704.95,703.66,0.28422817]
[1735105936941,0.28370806,704.95,703.66,0.28422817]
[1735105937240,0.2610358,704.94,703.66,0.28422817]
[1735105937443,0.2610358,704.94,703.72,1.05850441]
[1735105938539,0.2610358,704.94,703.74,1.05850441]
[1735105939338,0.2610358,704.94,703.66,1.34273258]
[1735105939741,0.2610433,704.93,703.66,1.34273258]
[1735105939944,0.2610433,704.92,703.66,1.34273258]
[1735105940203,0.2610433,704.91,703.69,1.05850441]
[1735105940337,0.2610433,704.9,703.69,1.05850441]
[1735105940538,0.2610433,704.89,703.69,1.05850441]
[1735105940740,0.28370806,704.95,703.69,1.05850441]
[1735105940937,0.26104113,704.94,703.69,1.05850441]
[1735105942442,0.28370806,704.95,703.68,1.05850441]
[1735105942641,0.26103974,704.94,703.68,1.05850441]
[1735105944351,0.28370806,704.95,703.68,1.05850441]
[1735105945602,0.28370806,704.95,703.67,1.05850441]
[1735105946045,0.26103329,704.94,703.67,1.05850441]
[1735105946260,0.28371208,704.94,703.67,1.05850441]
[1735105946440,0.28371208,704.94,703.68,1.05850441]